bitfinex-derivatives/quotes_ETHF0:USTF0_20250816
["timestamp","ask_amount","ask_price","bid_price","bid_amount"]
[1755339346030,1.9326,4398.5,4397.6,23.671]
[1755339346229,3.2078,4398.6,4397.6,23.671]
[1755339346230,2.09418854,4398.4,4397.6,23.671]
[1755339346429,1.9326,4398.2,4397.6,23.671]
[1755339346630,3.137,4398.0,4397.6,23.671]
[1755339346933,3.137,4397.7,4397.1,3.2078]
[1755339347140,1.2044,4397.4,4397.3,1.1621]
[1755339347331,1.2044,4397.4,4397.3,3.2524]
[1755339347532,0.749,4397.5,4397.4,3.2524]
[1755339347930,1.9534,4397.5,4397.1,3.2078]
[1755339348131,3.137,4397.8,4397.1,5.165]
[1755339348334,0.749,4397.6,4397.2,23.657]
[1755339348529,2.0038,4397.3,4397.2,23.657]
[1755339348839,3.258,4397.3,4397.2,23.657]
[1755339350042,0.45451,4397.4,4397.3,3.1982]
[1755339350533,0.45451,4397.4,4397.3,26.8442]
[1755339350933,2.0518,4397.3,4397.1,5.1363]
[1755339351138,1.2542,4397.3,4397.2,26.8432]
[1755339351334,0.45451,4397.4,4397.3,3.1982]
[1755339353139,0.45452,4397.3,4397.2,3.1982]
[1755339353338,0.45452,4397.3,4397.2,26.8292]
[1755339355337,2.91499,4396.7,4396.6,3.2078]
[1755339355539,3.71259,4396.7,4396.6,26.8268]
[1755339357641,3.71259,4396.7,4396.6,28.7553]
[1755339357842,1.25219,4396.7,4396.6,30.025]
[1755339358044,0.45483,4394.4,4394.3,1.2697]
[1755339358245,3.2078,4394.4,4394.3,3.1982]
[1755339358548,0.45482,4394.5,4394.4,3.1982]
[1755339359751,6.12302,4394.5,4394.4,0.734]
[1755339359949,6.12302,4394.5,4394.4,24.336]
[1755339360248,3.2078,4394.5,4394.4,26.8002]
[1755339360448,3.2078,4395.1,4394.6,2.4642]
[1755339360646,0.45473,4395.4,4395.0,3.1982]
[1755339360848,0.45473,4395.4,4395.2,3.1982]
[1755339361150,0.45473,4395.4,4395.3,3.1982]
[1755339362143,3.66248,4395.8,4395.7,1.1945]
[1755339362343,4.86868,4395.8,4395.7,26.7932]
[1755339362551,6.12288,4395.8,4395.7,24.327]
[1755339363147,3.66248,4395.8,4395.7,26.7912]
[1755339365852,3.66248,4395.8,4395.2,3.2078]
[1755339365853,0.45472,4395.4,4394.9,2.91897]
[1755339366050,0.45472,4395.4,4395.1,3.1982]
[1755339366248,0.45475,4395.1,4395.0,26.7872]
[1755339368152,3.2078,4396.0,4395.2,3.1982]
[1755339368456,3.2078,4396.0,4395.4,3.1982]
[1755339369154,3.2078,4396.0,4395.5,0.734]
[1755339369359,2.91507,4395.9,4395.7,1.1945]
[1755339369557,1.2542,4395.8,4395.7,0.734]
[1755339369750,2.4604,4395.8,4395.7,0.734]
[1755339369954,2.4604,4395.8,4395.7,3.1982]
[1755339371660,0.45467,4395.9,4395.6,23.569]
[1755339371661,0.45467,4395.9,4395.8,3.1982]
[1755339372458,2.91507,4395.9,4395.8,3.1982]
[1755339372761,2.91507,4395.9,4395.8,0.734]
[1755339372961,4.13669,4395.9,4393.9,3.2078]
[1755339373262,0.45483,4394.3,4394.2,1.1945]
[1755339373455,3.2078,4394.8,4394.3,1.1945]
[1755339373652,0.45482,4394.5,4394.2,23.552]
[1755339374258,0.45492,4393.5,4393.4,33.9515]
[1755339374460,0.45492,4393.5,4393.4,57.4985]
[1755339374662,3.2078,4394.3,4393.4,56.304]
[1755339374960,3.2078,4394.3,4393.6,1.2697]
[1755339375168,3.2078,4394.3,4393.7,1.1945]
[1755339375362,3.2078,4394.3,4393.4,32.757]
[1755339375559,1.2542,4394.1,4393.5,0.734]
[1755339375761,35.029,4396.7,4393.5,0.734]
[1755339375762,4.9169,4393.6,4393.5,23.541]
[1755339376265,3.2078,4393.6,4393.5,24.275]
[1755339376568,3.2078,4393.6,4393.5,26.7392]
[1755339376972,1.7091,4393.5,4392.6,3.2078]
[1755339377180,1.7091,4393.5,4390.3,5.15705678]
[1755339377181,1.2542,4392.7,4392.5,0.734]
[1755339377381,1.2542,4393.3,4392.7,0.734]
[1755339377675,3.2078,4393.0,4392.9,0.734]
[1755339377875,4.462,4393.0,4392.9,1.9285]
[1755339378578,3.2078,4393.6,4393.2,1.1035]
[1755339378882,1.2374,4393.5,4393.4,3.1422]
[1755339379074,3.2078,4393.6,4393.4,3.1422]
[1755339379376,3.2078,4394.6,4393.6,0.4549]
[1755339379679,3.2078,4393.9,4393.8,3.1422]
[1755339379877,0.0136,4393.8,4393.5,0.7397]
[1755339380077,1.251,4393.7,4393.6,23.531]
[1755339380477,1.251,4393.7,4392.5,3.2078]
[1755339380478,1.2374,4393.7,4392.5,3.2078]
[1755339380675,1.2374,4393.7,4391.5,1.1378]
[1755339380676,3.2078,4393.2,4392.6,23.985]
[1755339380879,0.0136,4393.8,4393.1,0.45496]
[1755339381082,3.2078,4393.4,4393.2,23.526]
[1755339381376,4.4588,4393.4,4393.3,1.8432]
[1755339381576,3.2078,4394.2,4392.8,1.1035]
[1755339381887,4.4588,4393.0,4392.9,23.525]
[1755339382274,1.7062,4392.7,4391.7,1.299]
[1755339382473,1.2374,4391.7,4390.9,4.3113]
[1755339382675,1.2374,4391.7,4391.0,23.52]
[1755339382877,0.45511,4391.6,4391.0,23.52]
[1755339383171,1.251,4391.3,4391.0,23.52]
[1755339383375,0.0136,4391.4,4391.0,23.52]
[1755339383580,1.2374,4391.3,4391.1,1.55866]
[1755339383780,1.2374,4391.3,4391.2,1.1035]
[1755339383983,3.2078,4391.7,4391.3,0.45514]
[1755339384185,1.251,4391.6,4391.5,0.7397]
[1755339384385,1.251,4391.6,4391.5,24.2557]
[1755339384681,1.251,4391.6,4391.5,23.516]
[1755339385080,1.251,4391.6,4391.5,24.2557]
[1755339385282,1.251,4391.6,4391.5,23.516]
[1755339385478,1.2374,4391.6,4391.5,24.2557]
[1755339385679,1.2374,4391.6,4391.5,25.3592]
[1755339385875,3.663,4392.4,4391.5,25.3592]
[1755339386075,3.2078,4392.4,4391.9,1.8432]
[1755339386282,1.2374,4392.3,4392.0,24.811]
[1755339386489,3.2214,4392.4,4392.1,1.1035]
[1755339386490,3.2078,4392.4,4392.1,1.1035]
[1755339386782,0.4552,4392.9,4392.3,0.7397]
[1755339386980,3.2078,4392.4,4392.1,1.8432]
[1755339387186,3.2078,4392.4,4392.2,1.1035]
[1755339387387,1.251,4392.3,4392.2,1.1035]
[1755339387686,1.251,4392.1,4392.0,23.512]
[1755339387876,1.251,4392.1,4392.0,25.3552]
[1755339388076,4.4452,4392.3,4392.1,1.8432]
[1755339388283,4.4452,4392.3,4392.2,0.7397]
[1755339388685,4.4452,4392.3,4392.2,1.8432]
[1755339389085,1.2374,4392.3,4392.2,1.8432]
[1755339389388,3.2078,4392.4,4392.3,1.1035]
[1755339389588,3.2078,4392.4,4392.0,23.512]
[1755339389791,1.7062,4392.1,4392.0,23.512]
[1755339390183,1.2374,4392.1,4392.0,24.2517]
[1755339390384,0.0136,4392.4,4392.3,0.7397]
[1755339390579,3.2078,4392.6,4391.3,2.0387]
[1755339390785,0.167954,4393.9,4391.3,2.0387]
[1755339390786,0.0136,4391.5,4391.4,24.2357]
[1755339391080,1.251,4391.5,4391.4,0.7397]
[1755339391285,1.2374,4391.8,4391.5,3.1422]
[1755339391489,3.2078,4391.9,4391.5,3.1422]
[1755339391791,1.2374,4391.7,4391.6,1.8432]
[1755339391989,1.251,4391.7,4391.6,1.8432]
[1755339392194,1.251,4391.7,4391.6,0.7397]
[1755339392390,1.2374,4391.7,4391.6,0.7397]
[1755339392692,1.251,4391.7,4391.6,24.2297]
[1755339393093,1.13773,4391.8,4391.0,0.7397]
[1755339393283,1.251,4391.1,4391.0,0.7397]
[1755339393483,1.251,4391.1,4391.0,24.2247]
[1755339393687,1.7062,4391.1,4391.0,24.384]
[1755339393884,1.7062,4391.1,4391.0,0.899]
[1755339394182,1.7062,4391.1,4390.2,0.7397]
[1755339394183,1.2374,4391.0,4390.2,0.7397]
[1755339394387,3.2078,4390.7,4390.6,0.7397]
[1755339394585,1.69255,4391.2,4390.7,1.4224]
[1755339394883,1.2374,4391.1,4390.7,0.2275]
[1755339395080,1.2374,4391.2,4391.0,1.55867]
[1755339395294,0.45512,4391.6,4391.2,0.45515]
[1755339395489,0.45512,4391.6,4390.7,0.2275]
[1755339395490,4.4452,4392.0,4391.4,3.1422]
[1755339395697,4.4452,4392.0,4391.5,0.7397]
[1755339395894,1.2374,4391.9,4391.8,0.7397]
[1755339396090,4.4452,4391.9,4391.8,0.7397]
[1755339396493,0.45506,4392.1,4391.8,1.8432]
[1755339396797,1.2374,4392.2,4392.1,1.8432]
[1755339397093,1.2374,4392.0,4391.8,1.8432]
[1755339397298,1.2374,4391.6,4391.5,1.8432]
[1755339397592,3.2078,4391.9,4391.6,0.45511]
[1755339397995,1.2374,4392.2,4391.9,0.45508]
[1755339398190,3.2078,4392.6,4392.5,0.45502]
[1755339398392,3.2078,4393.5,4393.2,0.45494]
[1755339398590,1.2374,4393.4,4393.3,3.1422]
[1755339398793,1.2374,4393.4,4393.3,0.7397]
[1755339398991,4.4452,4393.4,4393.3,0.7397]
[1755339400299,3.2078,4393.4,4393.3,3.1422]
[1755339400686,4.4452,4393.4,4393.3,1.8432]
[1755339401190,4.4452,4393.4,4393.3,0.7397]
[1755339401389,4.4452,4393.4,4393.3,1.8432]
[1755339401594,3.2078,4393.9,4393.5,1.8432]
[1755339401793,3.2078,4393.9,4393.6,0.4549]
[1755339401994,3.2078,4393.9,4393.7,23.454]
[1755339402188,3.2078,4393.9,4393.8,3.1422]
[1755339403397,3.2078,4394.5,4394.2,0.45483]
[1755339403590,3.2078,4394.5,4393.8,0.7397]
[1755339403798,0.45494,4393.3,4393.2,0.7397]
[1755339403998,0.45498,4392.8,4392.7,24.1847]
[1755339404191,0.45497,4393.0,4392.7,25.2882]
[1755339404494,3.2078,4392.8,4392.0,3.2078]
[1755339404701,3.2078,4392.3,4391.9,2.4025]
[1755339404900,3.2078,4392.3,4391.9,1.1035]
[1755339405102,3.2078,4392.3,4391.8,23.439]
[1755339405103,0.45505,4392.1,4392.0,0.7397]
[1755339405399,1.69245,4392.1,4392.0,0.7397]
[1755339405592,1.69245,4392.1,4392.0,1.8432]
[1755339405793,4.4452,4392.8,4392.1,2.4025]
[1755339406107,0.45503,4392.4,4392.1,0.45505]
[1755339406402,0.45503,4392.4,4392.2,3.1422]
[1755339406705,0.45503,4392.4,4391.0,3.59381934]
[1755339406706,1.69243,4392.4,4392.3,0.7397]
[1755339407600,1.2374,4391.6,4391.5,0.7397]
[1755339407805,1.2374,4391.5,4391.4,5.051]
[1755339408000,1.2374,4391.5,4391.4,25.2712]
[1755339408601,1.2374,4391.5,4391.4,26.5717]
[1755339408803,4.4452,4391.5,4391.4,24.1677]
[1755339409101,3.2078,4391.5,4391.4,26.6387]
[1755339410000,1.225,4392.5,4391.4,23.428]
[1755339410208,3.2078,4392.4,4391.8,2.471]
[1755339410503,3.2078,4392.4,4391.7,0.45509]
[1755339410504,1.225,4392.3,4392.0,3.2297]
[1755339410703,1.68004,4392.3,4392.2,1.9292]
[1755339410904,0.45506,4392.1,4391.9,23.42]
[1755339411104,0.45506,4392.1,4392.0,3.2297]
[1755339411605,0.45505,4392.2,4392.1,3.2297]
[1755339411804,3.2078,4392.9,4392.0,0.45506]
[1755339411995,3.2078,4392.8,4392.2,1.3005]
[1755339412196,5.57027,4392.8,4392.0,3.2297]
[1755339412403,4.4328,4392.8,4392.1,1.9292]
[1755339412603,0.45502,4392.5,4392.0,0.45506]
[1755339412807,1.225,4392.7,4392.1,1.1705]
[1755339413003,0.45503,4392.4,4392.2,2.471]
[1755339413304,0.45503,4392.4,4392.3,3.2297]
[1755339413495,0.45497,4393.0,4392.4,1.75552]
[1755339413695,1.13721,4393.8,4391.8,1.1377]
[1755339413696,0.45489,4393.8,4393.2,0.45494]
[1755339413900,3.2078,4394.3,4393.9,3.2297]
[1755339414204,3.2078,4394.3,4394.0,23.86086]
[1755339414509,3.2078,4394.3,4394.2,3.2297]
[1755339414802,3.2078,4394.3,4393.6,3.2078]
[1755339414803,0.45489,4393.7,4393.6,5.59545687]
[1755339414996,0.45489,4393.7,4393.6,29.8405]
[1755339415199,1.67989,4393.7,4393.6,28.54]
[1755339416708,1.67989,4393.7,4393.6,25.3322]
[1755339416904,0.45493,4393.3,4393.2,1.9292]
[1755339417107,0.45493,4393.3,4393.2,3.2297]
[1755339417609,1.67993,4393.3,4393.2,3.2297]
[1755339417903,0.45493,4393.3,4393.2,3.2297]
[1755339418103,3.2078,4393.8,4393.1,23.397]
[1755339418104,0.45488,4393.8,4393.4,0.45491]
[1755339418298,0.45488,4393.8,4393.5,23.387]
[1755339418504,0.45488,4393.8,4393.6,0.7587]
[1755339418803,0.45488,4393.8,4393.7,3.2297]
[1755339419910,1.67988,4393.8,4393.7,3.2297]
[1755339420106,1.67988,4393.8,4393.7,1.9292]
[1755339420311,1.67988,4393.8,4393.7,0.7587]
[1755339421106,1.67988,4393.8,4393.7,1.9292]
[1755339421307,1.67988,4393.8,4393.5,23.387]
[1755339421308,0.45487,4393.9,4393.8,3.2297]
[1755339421612,3.2078,4394.7,4394.3,0.45483]
[1755339421799,0.4548,4394.6,4394.5,3.2297]
[1755339422606,3.2078,4394.7,4394.5,3.2297]
[1755339422906,3.2078,4395.3,4394.8,1.3005]
[1755339423113,0.45475,4395.1,4395.0,3.2297]
[1755339423407,1.54819,4395.7,4395.1,1.9292]
[1755339423600,1.54819,4395.7,4395.3,3.2297]
[1755339423804,2.77319,4395.7,4395.4,23.364]
[1755339424003,2.77319,4395.7,4395.5,1.3005]
[1755339424201,3.66245,4396.0,4395.5,1.9292]
[1755339424403,3.2078,4396.0,4395.7,0.45468]
[1755339424613,0.45466,4396.0,4395.9,3.2297]
[1755339425110,0.45462,4396.3,4395.9,3.2297]
[1755339425309,0.45465,4396.1,4395.8,23.81567]
[1755339425502,0.45465,4396.1,4395.8,23.361]
[1755339425705,5.5263,4396.7,4395.8,23.361]
[1755339425904,5.5263,4396.7,4396.4,2.0592]
[1755339425905,3.2078,4396.7,4396.4,2.0592]
[1755339426111,3.66239,4396.7,4396.6,3.2297]
[1755339426408,1.67954,4397.1,4396.6,26.5817]
[1755339426602,0.45455,4397.0,4396.7,3.2297]
[1755339426809,0.1,4397.2,4396.8,0.7587]
[1755339427115,2.3185,4397.0,4396.9,0.7587]
[1755339428113,2.3185,4397.0,4396.9,1.9292]
[1755339428412,1.54812,4396.3,4396.2,1.1705]
[1755339428714,2.77312,4396.3,4396.2,25.2672]
[1755339428920,2.77312,4396.3,4396.2,24.0967]
[1755339429808,2.3185,4396.2,4395.7,0.7587]
[1755339430008,3.0636,4396.2,4395.9,23.336]
[1755339431309,3.0636,4396.2,4395.7,0.7587]
[1755339431310,2.3185,4396.2,4395.8,23.33]
[1755339431510,2.3185,4396.2,4396.1,3.9665]
[1755339431711,2.3185,4396.2,4396.1,3.2078]
[1755339432009,2.3185,4396.2,4396.1,5.137]
[1755339432217,0.45462,4396.3,4396.2,3.2297]
[1755339432518,0.45462,4396.3,4396.2,26.5507]
[1755339436214,0.45462,4396.4,4396.3,2.0592]
[1755339436414,0.45462,4396.4,4396.3,3.2297]
[1755339436616,0.4546,4396.5,4396.3,3.2297]
[1755339436811,0.4546,4396.6,4396.5,3.2297]
[1755339437013,0.4546,4396.6,4396.5,26.5297]
[1755339437218,2.7731,4396.6,4396.5,24.0587]
[1755339437612,2.7731,4396.6,4396.5,25.2292]
[1755339438518,2.7731,4396.6,4396.5,26.5297]
[1755339439416,0.45458,4396.8,4396.6,3.137]
[1755339439613,3.66237,4396.9,4396.7,3.137]
[1755339439820,0.1,4397.2,4396.9,0.45456]
[1755339440018,0.1,4397.2,4397.0,26.423]
[1755339440317,1.77243,4397.2,4397.1,26.421]
[1755339440627,2.90153,4397.2,4397.1,25.1653]
[1755339440823,3.66623,4397.2,4397.1,24.0611]
[1755339441014,2.90153,4397.2,4397.1,24.0611]
[1755339442019,2.90153,4397.2,4397.1,25.1653]
[1755339442821,2.90153,4397.2,4397.1,24.0611]
[1755339443014,2.90153,4397.2,4397.1,25.1653]
[1755339443916,0.55453,4397.2,4397.1,26.421]
[1755339444616,0.55453,4397.2,4397.1,25.1653]
[1755339444816,2.89883,4397.2,4397.1,24.0611]
[1755339445522,2.89883,4397.2,4397.1,25.1653]
[1755339445721,2.89883,4397.2,4397.1,26.421]
[1755339446417,3.66353,4397.2,4397.1,23.284]
[1755339447021,1.77243,4397.2,4397.1,26.421]
[1755339447223,0.55453,4397.2,4397.1,26.421]
[1755339447725,0.1,4397.2,4397.1,26.421]
[1755339449117,0.4545,4397.5,4397.2,0.45453]
[1755339449320,0.4545,4397.5,4397.3,23.242]
[1755339449525,0.4545,4397.5,4397.4,3.137]
[1755339450825,0.45449,4397.6,4397.4,3.59151]
[1755339451026,0.45449,4397.6,4397.5,26.377]
[1755339451515,0.45456,4396.9,4396.8,0.7771]
[1755339451716,0.45456,4396.9,4396.8,24.0081]
[1755339452317,2.82046,4396.9,4396.8,24.0081]
[1755339452730,2.82046,4396.9,4396.8,25.1123]
[1755339453224,0.45456,4396.9,4396.8,26.368]
[1755339454422,1.67246,4396.9,4396.8,26.368]
[1755339454621,3.2078,4397.2,4396.8,23.231]
[1755339454819,3.2078,4397.7,4397.1,3.137]
[1755339455022,2.3659,4398.1,4397.3,3.137]
[1755339455223,0.38451261,4398.0,4397.4,23.9921]
[1755339455423,2.3659,4397.5,4397.4,24.3192]
[1755339456029,2.3659,4397.5,4397.4,25.0963]
[1755339456225,3.2078,4397.6,4396.9,1.62895687]
[1755339456432,2.3659,4397.3,4397.1,0.7771]
[1755339456728,0.7647,4397.4,4397.2,0.7771]
[1755339456922,3.2078,4397.6,4397.3,23.207]
[1755339457124,2.3659,4397.4,4397.3,23.207]
[1755339457429,3.51506809,4397.4,4397.3,23.207]
[1755339458120,2.75036809,4397.4,4397.3,23.9841]
[1755339458326,3.51506809,4397.4,4397.3,23.207]
[1755339458922,5.341054,4397.4,4397.3,23.207]
[1755339459120,5.57362252,4397.4,4397.3,23.207]
[1755339459326,4.80892252,4397.4,4397.3,28.469]
[1755339459521,3.66092252,4397.4,4397.3,28.469]
[1755339459727,0.38422252,4397.4,4397.3,28.469]
[1755339459922,0.4545,4397.5,4397.4,3.137]
[1755339460127,0.4545,4397.5,4397.4,5.262]
[1755339460434,0.4545,4397.5,4397.4,6.89095687]
[1755339460624,0.4545,4397.5,4397.4,5.262]
[1755339460824,0.4545,4397.5,4397.4,4.76595687]
[1755339461829,1.148,4398.2,4397.5,3.5915]
[1755339462032,0.15173546,4398.1,4397.6,23.184]
[1755339462225,0.45448,4397.7,4397.6,23.184]
[1755339462632,0.45446,4397.9,4397.7,0.45448]
[1755339462931,0.45445,4398.1,4398.0,3.137]
[1755339463235,3.2078,4398.4,4398.0,26.316]
[1755339463434,0.45443,4398.2,4398.1,3.137]
[1755339464124,3.2078,4398.4,4398.3,3.137]
[1755339464329,3.2078,4398.4,4398.3,26.311]
[1755339464926,0.45439,4398.6,4398.4,0.45441]
[1755339465127,1.2179,4398.9,4398.4,0.45441]
[1755339465128,0.45438,4398.7,4398.5,3.137]
[1755339465334,0.45438,4398.7,4398.6,3.137]
[1755339465530,1.67228,4398.7,4398.6,26.307]
[1755339465735,2.82028,4398.7,4398.6,26.307]
[1755339466432,2.51314,4399.1,4399.0,2.125]
[1755339466625,2.66489666,4399.1,4399.0,26.0641]
[1755339467130,3.88279666,4399.1,4399.0,26.0641]
[1755339467332,3.73104,4399.1,4399.0,25.244]
[1755339467530,5.64381,4398.4,4398.3,1.62895687]
[1755339467830,3.58501,4398.4,4398.3,23.155]
[1755339468030,0.45446,4397.9,4397.7,1.62895687]
[1755339468228,3.58506,4397.9,4397.8,23.152]
[1755339469137,0.45446,4397.9,4397.8,26.3452]
[1755339470439,0.45446,4397.9,4397.8,27.97415687]
[1755339471234,1.74286,4397.9,4397.8,27.97415687]
[1755339471436,1.74286,4397.9,4397.8,26.3452]
[1755339471847,0.45446,4397.9,4397.8,26.3452]
[1755339472453,3.2078,4398.0,4397.8,26.3452]
[1755339472644,0.4544,4398.5,4398.2,0.45442]
[1755339472844,0.45439,4398.7,4398.5,2.4081]
[1755339473043,0.45439,4398.7,4398.6,26.3242]
[1755339473439,1.74279,4398.7,4398.6,26.3242]
[1755339473947,2.89309,4398.7,4398.6,26.3242]
[1755339474150,0.45439,4398.7,4398.6,26.3242]
[1755339475145,0.45437,4398.8,4398.6,23.131]
[1755339475447,0.45437,4398.8,4398.7,3.1932]
[1755339476749,1.74277,4398.8,4398.7,3.1932]
[1755339477051,1.74277,4398.8,4398.7,4.82212179]
[1755339477246,1.74277,4398.8,4398.7,3.1932]
[1755339477445,0.45437,4398.8,4398.7,3.1932]
[1755339477641,2.44351245,4400.7,4398.7,3.1932]
[1755339477642,1.2884,4400.3,4398.8,1.3349]
[1755339477850,0.45428,4399.7,4399.6,3.1932]
[1755339478047,1.2884,4400.1,4399.6,26.2992]
[1755339478242,3.2078,4400.5,4399.6,4.82162241]
[1755339478445,2.0243,4400.4,4399.7,1.62842241]
[1755339478646,3.2078,4400.0,4399.8,23.103]
[1755339478846,3.2078,4400.0,4399.9,23.102]
[1755339479445,6.3824,4400.0,4399.9,23.102]
[1755339479847,3.1746,4399.9,4399.3,1.62842241]
[1755339480050,0.7359,4399.7,4399.4,23.101]
[1755339480244,3.2078,4400.0,4399.3,1.62842241]
[1755339480553,2.4387,4399.7,4399.4,23.095]
[1755339480850,3.1746,4398.8,4398.7,1.62842241]
[1755339481051,3.1746,4398.8,4398.7,24.72042241]
[1755339481248,0.45436,4398.9,4398.8,3.1932]
[1755339481441,1.2884,4399.4,4398.9,2.4081]
[1755339481641,0.4543,4399.5,4399.3,2.12]
[1755339481841,0.45429,4399.6,4399.4,24.71481869]
[1755339482046,0.45429,4399.6,4399.5,3.1932]
[1755339482445,0.45432,4399.3,4399.2,1.62681869]
[1755339482751,3.62892,4399.3,4399.1,1.62681869]
[1755339482951,3.1746,4399.1,4398.7,23.082]
[1755339483145,3.2078,4399.2,4398.7,23.082]
[1755339483341,2.4387,4398.9,4398.7,23.082]
[1755339483544,3.1746,4398.8,4398.7,23.082]
[1755339485148,3.1746,4398.8,4398.7,24.1552]
[1755339485343,4.3581,4399.2,4398.7,26.2752]
[1755339485543,2.4387,4399.0,4398.9,1.8583]
[1755339485944,3.1746,4399.0,4398.9,1.8583]
[1755339486140,3.1746,4399.0,4398.9,3.1932]
[1755339486342,2.4387,4399.0,4398.9,3.1932]
[1755339486646,3.1746,4399.0,4398.9,1.8583]
[1755339487453,1.2884,4399.0,4398.9,1.8583]
[1755339487750,1.2884,4399.0,4398.9,3.1932]
[1755339488850,2.4387,4399.0,4398.9,3.1932]
[1755339489252,3.1746,4398.9,4398.7,23.8671]
[1755339489555,2.4387,4399.0,4398.7,23.082]
[1755339489849,0.7359,4398.8,4398.7,23.082]
[1755339490042,3.1746,4398.8,4398.7,23.082]
[1755339492247,3.1746,4399.1,4397.9,2.81099934]
[1755339492550,1.2884,4398.3,4398.0,23.046]
[1755339492748,3.2078,4398.0,4397.5,23.038]
[1755339492945,1.8862,4397.9,4397.8,1.63113128]
[1755339493147,3.2078,4398.0,4397.8,1.63113128]
[1755339493349,3.2078,4398.0,4397.9,3.1932]
[1755339493553,5.094,4398.0,4397.8,1.63113128]
[1755339493752,1.8862,4397.9,4397.8,1.63113128]
[1755339494355,1.8862,4397.8,4397.7,2.96603128]
[1755339494748,1.1503,4397.8,4397.7,1.63113128]
[1755339494944,1.8862,4397.8,4397.7,1.63113128]
[1755339495455,3.2078,4398.0,4397.7,2.12]
[1755339495649,3.2078,4398.0,4397.9,2.12]
[1755339495960,5.094,4398.0,4397.6,1.63113128]
[1755339496253,1.8862,4397.9,4397.8,1.3349]
[1755339496648,1.8862,4397.9,4397.8,2.12]
[1755339496846,1.8862,4397.9,4397.6,1.63113128]
[1755339497047,3.2078,4398.0,4397.5,23.038]
[1755339497252,1.8862,4397.9,4397.5,1.3349]
[1755339497553,0.15181005,4397.8,4397.6,23.025]
[1755339497754,1.8862,4397.7,4397.6,23.02]
[1755339497952,0.15180744,4397.7,4397.2,23.02]
[1755339498152,0.7359,4397.3,4397.2,23.02]
[1755339498353,1.8862,4397.3,4397.2,23.02]
[1755339499045,3.2078,4397.4,4396.7,23.014]
[1755339499249,5.0445,4396.8,4396.7,23.014]
[1755339499655,1.8367,4396.7,4396.6,1.2264]
[1755339499855,1.8367,4396.7,4396.6,24.2364]
[1755339500856,1.0702,4396.7,4396.6,26.1364]
[1755339501350,1.8367,4396.7,4396.6,26.1364]
[1755339501550,2.5581,4396.7,4396.6,26.9875]
[1755339501750,3.056,4396.7,4396.6,26.9875]
[1755339501951,3.056,4396.7,4396.6,25.6178]
[1755339502160,3.056,4396.7,4396.6,28.2742]
[1755339502449,3.2078,4396.8,4396.6,28.2742]
[1755339502660,3.2078,4396.8,4396.7,5.2642]
[1755339503259,6.2638,4396.8,4396.2,0.7518]
[1755339503557,2.2895,4396.5,4396.4,5.2642]
[1755339504148,0.4979,4396.5,4396.4,5.2642]
[1755339504346,3.2078,4396.8,4396.4,5.2642]
[1755339504551,3.2078,4396.8,4396.7,2.1378]
[1755339504857,3.2078,4396.8,4396.7,28.2562]
[1755339505160,6.2638,4396.8,4396.7,26.3562]
[1755339505547,0.4979,4396.6,4396.5,22.99]
[1755339505754,3.056,4396.2,4396.1,0.10236229]
[1755339506051,1.8367,4396.2,4396.1,0.10236229]
[1755339507452,1.8367,4396.1,4395.3,24.2104]
[1755339507653,5.0445,4395.4,4395.3,22.984]
[1755339507856,1.8367,4395.3,4394.7,2.3746]
[1755339508155,4.278,4394.9,4394.8,26.1064]
[1755339508463,3.2078,4394.9,4394.8,26.1044]
[1755339509757,1.8733,4394.9,4394.8,26.1044]
[1755339509956,3.2078,4395.6,4394.9,3.1264]
[1755339510153,3.2078,4395.6,4394.8,26.1858]
[1755339510353,3.2078,4395.6,4394.9,3.1264]
[1755339510549,0.45475,4395.1,4395.0,1.9782]
[1755339510855,0.45479,4394.7,4394.6,3.1264]
[1755339511057,0.45477,4394.9,4394.7,3.1264]
[1755339511258,0.45477,4394.9,4394.6,22.969]
[1755339511453,0.45475,4395.1,4394.8,0.45477]
[1755339511658,3.2078,4395.6,4395.1,1.1482]
[1755339511659,0.45473,4395.3,4395.1,1.1482]
[1755339511961,0.45473,4395.3,4395.2,26.0914]
[1755339513551,0.45471,4395.5,4395.2,26.0914]
[1755339513753,0.45471,4395.5,4395.4,6.3342]
[1755339514063,0.4547,4395.6,4395.4,3.66252]
[1755339514264,0.4547,4395.6,4395.5,22.956]
[1755339514763,0.4547,4395.6,4395.5,26.0824]
[1755339516560,0.4547,4395.6,4395.5,28.2202]
[1755339517556,0.4547,4395.6,4395.5,5.2642]
[1755339517868,5.5633,4395.6,4395.5,28.2042]
[1755339518068,5.5633,4395.6,4395.5,27.056]
[1755339518567,5.5633,4395.6,4395.5,28.2042]
[1755339518867,1.674,4395.6,4395.5,28.2042]
[1755339519366,2.7442,4395.6,4395.5,28.2042]
[1755339520164,5.5633,4395.6,4395.5,28.2042]
[1755339520358,5.5633,4395.6,4395.5,27.056]
[1755339520962,0.45473,4395.3,4395.2,1.2264]
[1755339521262,3.0505,4394.7,4394.6,0.7518]
[1755339521464,3.0505,4394.7,4394.6,22.925]
[1755339522067,3.0505,4394.8,4394.6,22.924]